[Event "Late-Titled-Tuesday-Blitz-March-26-2024"]
[Site "Chess.com"]
[Date "2024.03.26"]
[Round "2"]
[White "SHIVACalypso"]
[Black "Dolphin_2010"]
[Result "0-1"]
[WhiteElo "2483"]
[BlackElo "2333"]
[TimeControl "180+1"]
[EndTime "14:22:18 PDT"]
[Termination "Dolphin_2010 won by resignation"]

1. c4 {[%clk 0:03:00.9]} 1... c6 {[%clk 0:03:00.1]} 2. g3 {[%clk 0:02:59.6]}
2... d5 {[%clk 0:03:00.6]} 3. Bg2 {[%clk 0:03:00.2]} 3... Nf6 {[%clk 0:02:58.5]}
4. Nf3 {[%clk 0:03:00.8]} 4... Bf5 {[%clk 0:02:57.8]} 5. O-O {[%clk 0:03:01.4]}
5... Bxb1 {[%clk 0:02:56.9]} 6. Rxb1 {[%clk 0:03:00.9]} 6... e6 {[%clk
0:02:57.8]} 7. b3 {[%clk 0:03:00.7]} 7... Be7 {[%clk 0:02:57.4]} 8. Bb2 {[%clk
0:03:01.1]} 8... O-O {[%clk 0:02:58]} 9. e3 {[%clk 0:03:01.1]} 9... Nbd7 {[%clk
0:02:58.3]} 10. d4 {[%clk 0:03:01]} 10... Qa5 {[%clk 0:02:58.9]} 11. Qc2 {[%clk
0:02:55.3]} 11... Ba3 {[%clk 0:02:58.4]} 12. Bc3 {[%clk 0:02:44.5]} 12... Bb4
{[%clk 0:02:51.5]} 13. Bxb4 {[%clk 0:02:44.5]} 13... Qxb4 {[%clk 0:02:52.4]} 14.
Ne1 {[%clk 0:02:45.1]} 14... Rac8 {[%clk 0:02:50.4]} 15. Nd3 {[%clk 0:02:45.6]}
15... Qa3 {[%clk 0:02:49.1]} 16. c5 {[%clk 0:02:45.1]} 16... Qa5 {[%clk
0:02:43.3]} 17. b4 {[%clk 0:02:45.2]} 17... Qc7 {[%clk 0:02:43.8]} 18. a4 {[%clk
0:02:45]} 18... a6 {[%clk 0:02:33.2]} 19. b5 {[%clk 0:02:44.9]} 19... axb5
{[%clk 0:02:33.8]} 20. axb5 {[%clk 0:02:45.8]} 20... cxb5 {[%clk 0:02:30.4]} 21.
Rxb5 {[%clk 0:02:46.7]} 21... b6 {[%clk 0:02:31.1]} 22. Rfb1 {[%clk 0:02:42.3]}
22... bxc5 {[%clk 0:02:30]} 23. Nxc5 {[%clk 0:02:43.2]} 23... Nxc5 {[%clk
0:02:30.3]} 24. Rxc5 {[%clk 0:02:44.1]} 24... Qd7 {[%clk 0:02:30.3]} 25. Rc1
{[%clk 0:02:43.7]} 25... Rb8 {[%clk 0:02:26.2]} 26. Bf3 {[%clk 0:02:43.2]} 26...
g6 {[%clk 0:02:25.7]} 27. h4 {[%clk 0:02:41.7]} 27... h5 {[%clk 0:02:24.3]} 28.
Kg2 {[%clk 0:02:33]} 28... Qb7 {[%clk 0:02:21.2]} 29. Rc7 {[%clk 0:02:30.9]}
29... Qb2 {[%clk 0:02:19.9]} 30. Qxb2 {[%clk 0:02:31]} 30... Rxb2 {[%clk
0:02:20.5]} 31. Ra7 {[%clk 0:02:31]} 31... Kg7 {[%clk 0:02:15.3]} 32. Rcc7
{[%clk 0:02:31.4]} 32... Ne8 {[%clk 0:02:10.2]} 33. Rd7 {[%clk 0:02:30.2]} 33...
Rb6 {[%clk 0:02:09.8]} 34. e4 {[%clk 0:02:26.2]} 34... dxe4 {[%clk 0:02:10.7]}
35. Bxe4 {[%clk 0:02:27.1]} 35... Nf6 {[%clk 0:02:11.4]} 36. Bf3 {[%clk
0:02:27]} 36... Nxd7 {[%clk 0:02:11.2]} 37. Rxd7 {[%clk 0:02:26.4]} 37... Rbb8
{[%clk 0:02:07.5]} 38. d5 {[%clk 0:02:25.2]} 38... exd5 {[%clk 0:02:04.8]} 39.
Rxd5 {[%clk 0:02:23.8]} 39... Rfe8 {[%clk 0:02:02.7]} 40. Rd2 {[%clk 0:02:22.2]}
40... Re7 {[%clk 0:02:03.3]} 41. Rc2 {[%clk 0:02:21.7]} 41... Rd8 {[%clk
0:02:01.6]} 42. Rb2 {[%clk 0:02:20.5]} 42... Red7 {[%clk 0:02:01]} 43. Rc2
{[%clk 0:02:08.2]} 43... Rd2 {[%clk 0:02:01.4]} 44. Rc5 {[%clk 0:02:08.5]} 44...
Rb2 {[%clk 0:01:56.6]} 45. Bd5 {[%clk 0:02:08.2]} 45... Rd6 {[%clk 0:01:53.2]}
46. Ra5 {[%clk 0:02:04.6]} 46... Rd7 {[%clk 0:01:29.1]} 47. Rc5 {[%clk
0:02:01.7]} 47... Re7 {[%clk 0:01:27.1]} 48. Bf3 {[%clk 0:01:57.5]} 48... Ra7
{[%clk 0:01:25.3]} 49. Bd5 {[%clk 0:01:46.9]} 49... Rd2 {[%clk 0:01:21.2]} 50.
Bb3 {[%clk 0:01:39.9]} 50... Rb7 {[%clk 0:01:17.7]} 51. Rc3 {[%clk 0:01:39.5]}
51... Rb2 {[%clk 0:01:13.6]} 52. Bd5 {[%clk 0:01:36.1]} 52... Rd7 {[%clk
0:01:13.6]} 53. Bb3 {[%clk 0:01:35.2]} 53... Rd6 {[%clk 0:01:08.2]} 54. Kg1
{[%clk 0:01:14.2]} 54... Rf6 {[%clk 0:01:05.4]} 55. Bc2 {[%clk 0:01:14.1]} 55...
Rd6 {[%clk 0:00:54.5]} 56. Bb3 {[%clk 0:01:12.1]} 56... Rf6 {[%clk 0:00:51.2]}
57. Bc2 {[%clk 0:01:11.4]} 57... Re6 {[%clk 0:00:51.8]} 58. Bb3 {[%clk
0:01:09.1]} 58... Rb6 {[%clk 0:00:41.6]} 59. Bc2 {[%clk 0:01:01.5]} 59... Ra2
{[%clk 0:00:40.1]} 60. Be4 {[%clk 0:00:54.4]} 60... Rbb2 {[%clk 0:00:29]} 61.
Rf3 {[%clk 0:00:54]} 61... Rd2 {[%clk 0:00:29]} 62. Kg2 {[%clk 0:00:50.1]} 62...
f5 {[%clk 0:00:29]} 63. Bc6 {[%clk 0:00:46.4]} 63... Kf6 {[%clk 0:00:25.2]} 64.
Bb7 {[%clk 0:00:43.4]} 64... Rab2 {[%clk 0:00:25]} 65. Bc6 {[%clk 0:00:43.1]}
65... Rd6 {[%clk 0:00:19.4]} 66. Be8 {[%clk 0:00:40]} 66... Rb4 {[%clk
0:00:19.4]} 67. Rc3 {[%clk 0:00:33.4]} 67... Ke7 {[%clk 0:00:18.1]} 68. Bc6
{[%clk 0:00:33]} 68... Rd2 {[%clk 0:00:14.7]} 69. Re3+ {[%clk 0:00:27.9]} 69...
Kd6 {[%clk 0:00:13]} 70. Be8 {[%clk 0:00:27.4]} 70... Rg4 {[%clk 0:00:05]} 71.
Bf7 {[%clk 0:00:23.5]} 71... f4 {[%clk 0:00:05]} 72. Re6+ {[%clk 0:00:20.6]}
72... Kc5 {[%clk 0:00:04.9]} 73. Rxg6 {[%clk 0:00:20.7]} 73... fxg3 {[%clk
0:00:04]} 74. Rxg4 {[%clk 0:00:20.8]} 74... hxg4 {[%clk 0:00:02.2]} 75. Kxg3
{[%clk 0:00:20.6]} 75... Rd4 {[%clk 0:00:02.9]} 76. Bh5 {[%clk 0:00:19.8]} 76...
Kd5 {[%clk 0:00:02.8]} 77. Bxg4 {[%clk 0:00:20.2]} 77... Ke5 {[%clk 0:00:03.7]}
78. f3 {[%clk 0:00:19.3]} 78... Kf6 {[%clk 0:00:04.6]} 79. Kh3 {[%clk
0:00:18.9]} 79... Rb4 {[%clk 0:00:05.5]} 80. Kg3 {[%clk 0:00:19.5]} 80... Rb1
{[%clk 0:00:05.1]} 81. Kh3 {[%clk 0:00:19.7]} 81... Rg1 {[%clk 0:00:05.5]} 82.
Kh2 {[%clk 0:00:19.9]} 82... Re1 {[%clk 0:00:05.1]} 83. Kg3 {[%clk 0:00:20.4]}
83... Ke5 {[%clk 0:00:05.7]} 84. h5 {[%clk 0:00:20.3]} 84... Rh1 {[%clk
0:00:04.2]} 85. Kg2 {[%clk 0:00:19.9]} 85... Rc1 {[%clk 0:00:03]} 86. Kg3 {[%clk
0:00:20.8]} 86... Kf6 {[%clk 0:00:03.3]} 87. Kg2 {[%clk 0:00:19.6]} 87... Kg5
{[%clk 0:00:04.2]} 88. Kg3 {[%clk 0:00:20.1]} 88... Rc3 {[%clk 0:00:05]} 89. Kg2
{[%clk 0:00:18.6]} 89... Kf4 {[%clk 0:00:05.2]} 90. Kh3 {[%clk 0:00:16.9]} 90...
Rc2 {[%clk 0:00:04.9]} 91. h6 {[%clk 0:00:12.1]} 91... Rc6 {[%clk 0:00:04.5]}
92. Kg2 {[%clk 0:00:12]} 92... Rxh6 {[%clk 0:00:05]} 93. Kf2 {[%clk 0:00:12.4]}
93... Rh2+ {[%clk 0:00:04.9]} 94. Ke1 {[%clk 0:00:11.8]} 94... Ke3 {[%clk
0:00:04.3]} 95. Kf1 {[%clk 0:00:12.4]} 95... Rf2+ {[%clk 0:00:04.3]} 96. Kg1
{[%clk 0:00:12.6]} 96... Ke2 {[%clk 0:00:03.3]} 97. Bh5 {[%clk 0:00:12.3]} 97...
Ke1 {[%clk 0:00:03.1]} 98. Bg4 {[%clk 0:00:12.2]} 98... Ke2 {[%clk 0:00:03.4]}
99. Bh5 {[%clk 0:00:12.4]} 99... Ke3 {[%clk 0:00:04]} 100. Bg4 {[%clk 0:00:13]}
100... Rc2 {[%clk 0:00:04]} 101. Bh5 {[%clk 0:00:13.2]} 101... Rc5 {[%clk
0:00:02.5]} 102. Bg4 {[%clk 0:00:13.1]} 102... Rb5 {[%clk 0:00:03.4]} 103. Bh5
{[%clk 0:00:13.2]} 103... Kf4 {[%clk 0:00:03.5]} 104. Bg4 {[%clk 0:00:12.4]}
104... Rb2 {[%clk 0:00:02.9]} 105. Kf1 {[%clk 0:00:12.3]} 105... Kg3 {[%clk
0:00:02.4]} 106. Ke1 {[%clk 0:00:12.2]} 106... Rg2 {[%clk 0:00:01.5]} 107. Bh5
{[%clk 0:00:11.8]} 107... Rh2 {[%clk 0:00:02.3]} 108. Bg4 {[%clk 0:00:11.8]}
108... Rb2 {[%clk 0:00:02.8]} 109. Bh5 {[%clk 0:00:11.4]} 109... Rb4 {[%clk
0:00:03.4]} 110. Bg4 {[%clk 0:00:11.8]} 110... Rb5 {[%clk 0:00:04.1]} 111. Bh5
{[%clk 0:00:12.1]} 111... Rxh5 {[%clk 0:00:03.3]} 0-1

[Event "Late-Titled-Tuesday-Blitz-March-26-2024"]
[Site "Chess.com"]
[Date "2024.03.26"]
[Round "3"]
[White "kagg1125"]
[Black "rhwr"]
[Result "1-0"]
[WhiteElo "2521"]
[BlackElo "2292"]
[TimeControl "180+1"]
[EndTime "14:24:31 PDT"]
[Termination "kagg1125 won by resignation"]

1. e4 {[%clk 0:03:00.9]} 1... c5 {[%clk 0:03:00.1]} 2. Nf3 {[%clk 0:03:00.6]}
2... d6 {[%clk 0:03:00.5]} 3. d4 {[%clk 0:03:01]} 3... cxd4 {[%clk 0:03:01.1]}
4. Nxd4 {[%clk 0:03:01.9]} 4... Nf6 {[%clk 0:03:01.5]} 5. Nc3 {[%clk 0:03:02.6]}
5... e5 {[%clk 0:03:02.1]} 6. Bb5+ {[%clk 0:03:02]} 6... Bd7 {[%clk 0:03:02.2]}
7. Bxd7+ {[%clk 0:03:02.2]} 7... Qxd7 {[%clk 0:03:02.6]} 8. Nf5 {[%clk
0:03:00.2]} 8... d5 {[%clk 0:03:02.9]} 9. Nxd5 {[%clk 0:03:00.4]} 9... Nxe4
{[%clk 0:03:01.9]} 10. O-O {[%clk 0:02:58.1]} 10... Na6 {[%clk 0:02:51.4]} 11.
Nfe3 {[%clk 0:02:30.8]} 11... O-O-O {[%clk 0:02:40.4]} 12. c3 {[%clk 0:02:25.7]}
12... Nc7 {[%clk 0:02:34.8]} 13. Nxc7 {[%clk 0:02:23.7]} 13... Qxc7 {[%clk
0:02:32]} 14. Qg4+ {[%clk 0:02:23.6]} 14... f5 {[%clk 0:02:31]} 15. Qxf5+ {[%clk
0:02:24]} 15... Kb8 {[%clk 0:02:29.9]} 16. Qxe4 {[%clk 0:02:24.5]} 1-0

[Event "Late-Titled-Tuesday-Blitz-March-26-2024"]
[Site "Chess.com"]
[Date "2024.03.26"]
[Round "3"]
[White "Cluke86"]
[Black "maurovargas01"]
[Result "1-0"]
[WhiteElo "2337"]
[BlackElo "1851"]
[TimeControl "180+1"]
[EndTime "14:24:38 PDT"]
[Termination "Cluke86 won by resignation"]

1. e4 {[%clk 0:03:00.9]} 1... d5 {[%clk 0:02:54.3]} 2. exd5 {[%clk 0:03:00.4]}
2... Qxd5 {[%clk 0:02:55.2]} 3. Nf3 {[%clk 0:03:00.4]} 3... Qa5 {[%clk
0:02:52.6]} 4. Bc4 {[%clk 0:02:59.3]} 4... Nf6 {[%clk 0:02:51.3]} 5. Nc3 {[%clk
0:02:51.1]} 5... c6 {[%clk 0:02:51.3]} 6. d4 {[%clk 0:02:49.2]} 6... Bg4 {[%clk
0:02:51.3]} 7. h3 {[%clk 0:02:47.5]} 7... Bh5 {[%clk 0:02:51]} 8. g4 {[%clk
0:02:45.8]} 8... Bg6 {[%clk 0:02:50.5]} 9. Bd2 {[%clk 0:02:42.3]} 9... Qc7
{[%clk 0:02:44.8]} 10. Ne5 {[%clk 0:02:27.5]} 10... Nbd7 {[%clk 0:02:41.3]} 11.
Bf4 {[%clk 0:02:22.9]} 11... Qxe5+ {[%clk 0:02:35]} 12. dxe5 {[%clk 0:02:19.4]}
1-0

[Event "Late-Titled-Tuesday-Blitz-March-26-2024"]
[Site "Chess.com"]
[Date "2024.03.26"]
[Round "3"]
[White "artooon"]
[Black "newyorkmouse"]
[Result "1-0"]
[WhiteElo "3029"]
[BlackElo "2698"]
[TimeControl "180+1"]
[EndTime "14:24:47 PDT"]
[Termination "artooon won by resignation"]

1. e4 {[%clk 0:03:00.9]} 1... c6 {[%clk 0:03:00.2]} 2. d4 {[%clk 0:03:00.9]}
2... d5 {[%clk 0:03:00.8]} 3. e5 {[%clk 0:03:01.8]} 3... Na6 {[%clk 0:03:01.4]}
4. c3 {[%clk 0:03:00.1]} 4... Nc7 {[%clk 0:03:01.5]} 5. Bd3 {[%clk 0:03:00.7]}
5... h5 {[%clk 0:03:01.4]} 6. h3 {[%clk 0:03:00.6]} 6... g6 {[%clk 0:03:01.5]}
7. Nf3 {[%clk 0:02:59.8]} 7... Nh6 {[%clk 0:03:00.8]} 8. O-O {[%clk 0:03:00]}
8... Bf5 {[%clk 0:03:01.1]} 9. Na3 {[%clk 0:02:49.5]} 9... Ne6 {[%clk
0:03:00.4]} 10. Nc2 {[%clk 0:02:46.5]} 10... Ng7 {[%clk 0:03:00.4]} 11. Bxh6
{[%clk 0:02:38.1]} 11... Rxh6 {[%clk 0:02:57.7]} 12. Bxf5 {[%clk 0:02:38.1]}
12... Nxf5 {[%clk 0:02:57.5]} 13. e6 {[%clk 0:02:38.7]} 13... fxe6 {[%clk
0:02:54.8]} 14. Qe2 {[%clk 0:02:32.1]} 14... Qd6 {[%clk 0:02:53.1]} 15. Ng5
{[%clk 0:02:32.5]} 15... Kd7 {[%clk 0:02:51.8]} 16. Rae1 {[%clk 0:02:29.8]}
16... Ng7 {[%clk 0:02:46.3]} 17. Nf7 {[%clk 0:02:28.6]} 17... Qf4 {[%clk
0:02:43.1]} 18. Nxh6 {[%clk 0:02:28.9]} 18... Qxh6 {[%clk 0:02:44]} 19. Nb4
{[%clk 0:02:27.4]} 19... g5 {[%clk 0:02:39.7]} 20. Nd3 {[%clk 0:02:27.7]} 20...
b6 {[%clk 0:02:38.8]} 21. Ne5+ {[%clk 0:02:24.5]} 21... Kc7 {[%clk 0:02:37.9]}
22. c4 {[%clk 0:02:25]} 22... Nf5 {[%clk 0:02:36.3]} 23. cxd5 {[%clk 0:02:22.9]}
23... exd5 {[%clk 0:02:37.2]} 24. Rc1 {[%clk 0:02:20.4]} 24... Nxd4 {[%clk
0:02:36.3]} 25. Qd3 {[%clk 0:02:20.4]} 25... c5 {[%clk 0:02:35.6]} 26. Qxd4
{[%clk 0:02:20.5]} 1-0

[Event "Late-Titled-Tuesday-Blitz-March-26-2024"]
[Site "Chess.com"]
[Date "2024.03.26"]
[Round "3"]
[White "ahmedkandiliii"]
[Black "Elsa167"]
[Result "1-0"]
[WhiteElo "2524"]
[BlackElo "2782"]
[TimeControl "180+1"]
[EndTime "14:24:55 PDT"]
[Termination "ahmedkandiliii won by resignation"]

1. e4 {[%clk 0:02:41.8]} 1... e6 {[%clk 0:02:59.4]} 2. d4 {[%clk 0:02:39.7]}
2... d5 {[%clk 0:03:00.1]} 3. Nd2 {[%clk 0:02:39.3]} 3... c5 {[%clk 0:02:59]} 4.
exd5 {[%clk 0:02:38.7]} 4... Qxd5 {[%clk 0:02:59.9]} 5. Ngf3 {[%clk 0:02:38.7]}
5... cxd4 {[%clk 0:03:00.6]} 6. Bc4 {[%clk 0:02:38.8]} 6... Qd7 {[%clk
0:03:01.2]} 7. O-O {[%clk 0:02:38]} 7... Nc6 {[%clk 0:03:01.9]} 8. Nb3 {[%clk
0:02:37.4]} 8... a6 {[%clk 0:03:02.5]} 9. Nbxd4 {[%clk 0:02:36.6]} 9... Nxd4
{[%clk 0:03:03.4]} 10. Nxd4 {[%clk 0:02:36.5]} 10... Qc7 {[%clk 0:03:04.1]} 11.
Bd3 {[%clk 0:02:33.2]} 11... Bd6 {[%clk 0:03:04.1]} 12. h3 {[%clk 0:02:31.6]}
12... Nf6 {[%clk 0:03:04.5]} 13. Bg5 {[%clk 0:02:31]} 13... Bd7 {[%clk
0:03:04.1]} 14. Re1 {[%clk 0:02:25]} 14... h6 {[%clk 0:03:02]} 15. Bxf6 {[%clk
0:02:24.6]} 15... gxf6 {[%clk 0:03:02.5]} 16. Qf3 {[%clk 0:02:17.3]} 16... Be5
{[%clk 0:02:58]} 17. c3 {[%clk 0:02:11.1]} 17... O-O {[%clk 0:02:54.9]} 18. Qh5
{[%clk 0:02:05.7]} 18... Bxd4 {[%clk 0:02:46]} 19. cxd4 {[%clk 0:01:51.1]} 19...
Qf4 {[%clk 0:02:45.2]} 20. Re4 {[%clk 0:01:49.2]} 1-0

[Event "Late-Titled-Tuesday-Blitz-March-26-2024"]
[Site "Chess.com"]
[Date "2024.03.26"]
[Round "3"]
[White "PenguinPacks"]
[Black "mightysmasher"]
[Result "0-1"]
[WhiteElo "2403"]
[BlackElo "2609"]
[TimeControl "180+1"]
[EndTime "14:25:00 PDT"]
[Termination "mightysmasher won by resignation"]

1. e4 {[%clk 0:03:00.9]} 1... e6 {[%clk 0:02:59.4]} 2. d4 {[%clk 0:03:00.6]}
2... d5 {[%clk 0:02:59.6]} 3. e5 {[%clk 0:03:01.2]} 3... c5 {[%clk 0:02:59.7]}
4. c3 {[%clk 0:03:01.7]} 4... Nc6 {[%clk 0:03:00]} 5. Nf3 {[%clk 0:03:01.9]}
5... Qb6 {[%clk 0:02:59.9]} 6. a3 {[%clk 0:03:01.8]} 6... Bd7 {[%clk 0:02:59.4]}
7. b4 {[%clk 0:03:01.1]} 7... cxd4 {[%clk 0:02:59.6]} 8. cxd4 {[%clk 0:03:01.3]}
8... Rc8 {[%clk 0:03:00.2]} 9. Bb2 {[%clk 0:02:35.3]} 9... Na5 {[%clk
0:02:51.6]} 10. Nbd2 {[%clk 0:02:28]} 10... Nc4 {[%clk 0:02:49.4]} 11. Nxc4
{[%clk 0:02:28]} 11... dxc4 {[%clk 0:02:49.6]} 12. Rc1 {[%clk 0:02:28.7]} 12...
Qa6 {[%clk 0:02:49]} 13. Nd2 {[%clk 0:02:14.3]} 13... b5 {[%clk 0:02:46.6]} 14.
a4 {[%clk 0:02:10.3]} 14... Ne7 {[%clk 0:02:44.8]} 15. axb5 {[%clk 0:02:06.9]}
15... Bxb5 {[%clk 0:02:44.1]} 16. Ra1 {[%clk 0:02:07.1]} 16... Qb7 {[%clk
0:02:42.6]} 17. Qf3 {[%clk 0:01:58.5]} 17... Nd5 {[%clk 0:02:39.9]} 18. Ba3
{[%clk 0:01:53]} 18... c3 {[%clk 0:02:35.1]} 0-1

[Event "Late-Titled-Tuesday-Blitz-March-26-2024"]
[Site "Chess.com"]
[Date "2024.03.26"]
[Round "3"]
[White "slorovel"]
[Black "Zkid"]
[Result "0-1"]
[WhiteElo "2635"]
[BlackElo "2907"]
[TimeControl "180+1"]
[EndTime "14:26:14 PDT"]
[Termination "Zkid won by resignation"]

1. e4 {[%clk 0:03:00.9]} 1... c5 {[%clk 0:02:59.7]} 2. Nf3 {[%clk 0:03:00.5]}
2... d6 {[%clk 0:02:57.3]} 3. Bb5+ {[%clk 0:02:59.3]} 3... Bd7 {[%clk
0:02:57.6]} 4. Bxd7+ {[%clk 0:02:59.1]} 4... Nxd7 {[%clk 0:02:58.5]} 5. O-O
{[%clk 0:02:59.1]} 5... Ngf6 {[%clk 0:02:58.4]} 6. Re1 {[%clk 0:02:59.4]} 6...
e6 {[%clk 0:02:58]} 7. d4 {[%clk 0:02:59.5]} 7... cxd4 {[%clk 0:02:57.5]} 8.
Nxd4 {[%clk 0:03:00.4]} 8... Be7 {[%clk 0:02:57.9]} 9. c4 {[%clk 0:03:00.5]}
9... O-O {[%clk 0:02:57.5]} 10. Nc3 {[%clk 0:03:00.6]} 10... Qa5 {[%clk
0:02:56.6]} 11. Be3 {[%clk 0:02:58.1]} 11... Rac8 {[%clk 0:02:55.9]} 12. Qd2
{[%clk 0:02:47.5]} 12... Rxc4 {[%clk 0:02:51.3]} 13. Rac1 {[%clk 0:02:21.8]}
13... Rfc8 {[%clk 0:02:41.7]} 14. Nb3 {[%clk 0:02:09.4]} 14... Qh5 {[%clk
0:02:38]} 15. f3 {[%clk 0:02:09.1]} 15... a6 {[%clk 0:02:37.1]} 16. Qe2 {[%clk
0:02:07.1]} 16... b5 {[%clk 0:02:25.2]} 17. Rcd1 {[%clk 0:02:04.5]} 17... b4
{[%clk 0:01:59.7]} 18. Na4 {[%clk 0:02:02]} 18... Qb5 {[%clk 0:01:59.4]} 19. Nd2
{[%clk 0:01:52.2]} 19... Rc2 {[%clk 0:01:57.5]} 20. b3 {[%clk 0:01:48.3]} 20...
Rxa2 {[%clk 0:01:54.1]} 21. Qxb5 {[%clk 0:01:36.4]} 21... axb5 {[%clk 0:01:55]}
22. Nb6 {[%clk 0:01:37]} 22... Nxb6 {[%clk 0:01:54.4]} 23. Bxb6 {[%clk
0:01:37.9]} 23... Rcc2 {[%clk 0:01:52.7]} 24. Be3 {[%clk 0:01:37.9]} 24... d5
{[%clk 0:01:52.9]} 25. e5 {[%clk 0:01:37.4]} 25... Nd7 {[%clk 0:01:52.7]} 26. f4
{[%clk 0:01:37.6]} 26... Bc5 {[%clk 0:01:52.1]} 27. Kf2 {[%clk 0:01:36.4]} 27...
Rxd2+ {[%clk 0:01:51.7]} 0-1

[Event "Late-Titled-Tuesday-Blitz-March-26-2024"]
[Site "Chess.com"]
[Date "2024.03.26"]
[Round "3"]
[White "Njal28"]
[Black "rdarruda"]
[Result "1-0"]
[WhiteElo "3030"]
[BlackElo "2530"]
[TimeControl "180+1"]
[EndTime "14:26:16 PDT"]
[Termination "Njal28 won by resignation"]

1. Nf3 {[%clk 0:03:00.9]} 1... d5 {[%clk 0:02:58.3]} 2. g3 {[%clk 0:03:00.4]}
2... Nf6 {[%clk 0:02:57.9]} 3. Bg2 {[%clk 0:03:00.8]} 3... c5 {[%clk 0:02:54.4]}
4. O-O {[%clk 0:03:00.6]} 4... Nc6 {[%clk 0:02:54.7]} 5. d3 {[%clk 0:03:00.9]}
5... e6 {[%clk 0:02:53.9]} 6. e4 {[%clk 0:03:00.9]} 6... dxe4 {[%clk 0:02:52.8]}
7. dxe4 {[%clk 0:03:01.8]} 7... Qxd1 {[%clk 0:02:52.4]} 8. Rxd1 {[%clk
0:03:02.7]} 8... b6 {[%clk 0:02:52.2]} 9. Na3 {[%clk 0:02:59.3]} 9... Bb7 {[%clk
0:02:50.1]} 10. Nb5 {[%clk 0:02:56.5]} 10... Rc8 {[%clk 0:02:49.4]} 11. Bf4
{[%clk 0:02:52.8]} 11... Be7 {[%clk 0:02:46.3]} 12. Ne5 {[%clk 0:02:19.2]} 12...
Nxe5 {[%clk 0:02:38.3]} 13. Bxe5 {[%clk 0:02:20.1]} 13... O-O {[%clk 0:02:35.4]}
14. Bd6 {[%clk 0:02:18.2]} 14... Rfe8 {[%clk 0:01:31.9]} 15. Bxe7 {[%clk
0:02:14.5]} 15... Rxe7 {[%clk 0:01:30.2]} 16. Nd6 {[%clk 0:02:15]} 16... Rb8
{[%clk 0:00:55.5]} 17. Nxb7 {[%clk 0:02:13.7]} 17... Rexb7 {[%clk 0:00:56.4]}
18. e5 {[%clk 0:02:13.8]} 18... Nd5 {[%clk 0:00:56.6]} 19. c4 {[%clk 0:02:14.5]}
1-0

[Event "Late-Titled-Tuesday-Blitz-March-26-2024"]
[Site "Chess.com"]
[Date "2024.03.26"]
[Round "3"]
[White "SuanFernandes"]
[Black "ChessSwole"]
[Result "0-1"]
[WhiteElo "2305"]
[BlackElo "2665"]
[TimeControl "180+1"]
[EndTime "14:26:30 PDT"]
[Termination "ChessSwole won by resignation"]

1. d4 {[%clk 0:02:56.6]} 1... d5 {[%clk 0:02:57.2]} 2. c4 {[%clk 0:02:57.1]}
2... e6 {[%clk 0:02:57.1]} 3. Nc3 {[%clk 0:02:57.5]} 3... Nf6 {[%clk 0:02:57.2]}
4. Nf3 {[%clk 0:02:57.8]} 4... Be7 {[%clk 0:02:57.1]} 5. Bf4 {[%clk 0:02:58.5]}
5... O-O {[%clk 0:02:55.5]} 6. e3 {[%clk 0:02:59.2]} 6... b6 {[%clk 0:02:54.7]}
7. Bd3 {[%clk 0:02:57.9]} 7... Bb7 {[%clk 0:02:52]} 8. cxd5 {[%clk 0:02:51.3]}
8... Nxd5 {[%clk 0:02:52.9]} 9. Nxd5 {[%clk 0:02:51.4]} 9... Qxd5 {[%clk
0:02:44.8]} 10. O-O {[%clk 0:02:31.6]} 10... c5 {[%clk 0:02:41]} 11. dxc5 {[%clk
0:02:11.8]} 11... Bxc5 {[%clk 0:02:37.4]} 12. Qc2 {[%clk 0:02:08.7]} 12... h6
{[%clk 0:02:33.9]} 13. Rfd1 {[%clk 0:02:03.7]} 13... Qh5 {[%clk 0:02:32.6]} 14.
Bh7+ {[%clk 0:01:59.4]} 14... Kh8 {[%clk 0:02:32.4]} 15. Be4 {[%clk 0:01:59.7]}
15... Nc6 {[%clk 0:02:31.7]} 16. a3 {[%clk 0:01:58.2]} 16... Rac8 {[%clk
0:02:28]} 17. Rd7 {[%clk 0:01:52]} 17... Ba8 {[%clk 0:02:22.1]} 18. Rad1 {[%clk
0:01:21.4]} 18... f5 {[%clk 0:02:12.8]} 19. Bd3 {[%clk 0:01:13.8]} 19... Nb8
{[%clk 0:01:58.1]} 20. Be5 {[%clk 0:01:05.5]} 20... Nxd7 {[%clk 0:01:55.9]} 0-1

[Event "Late-Titled-Tuesday-Blitz-March-26-2024"]
[Site "Chess.com"]
[Date "2024.03.26"]
[Round "3"]
[White "CMmauricio"]
[Black "secretsuperstar7"]
[Result "0-1"]
[WhiteElo "2760"]
[BlackElo "2512"]
[TimeControl "180+1"]
[EndTime "14:26:53 PDT"]
[Termination "secretsuperstar7 won by checkmate"]

1. e4 {[%clk 0:03:00.9]} 1... c5 {[%clk 0:02:54.9]} 2. Nc3 {[%clk 0:03:01]} 2...
e6 {[%clk 0:02:51.7]} 3. g3 {[%clk 0:03:01.9]} 3... d5 {[%clk 0:02:49.5]} 4. d3
{[%clk 0:03:02.1]} 4... Nc6 {[%clk 0:02:46.3]} 5. Bg2 {[%clk 0:03:02.4]} 5...
Nf6 {[%clk 0:02:45.7]} 6. f4 {[%clk 0:03:02.6]} 6... Be7 {[%clk 0:02:40.4]} 7.
e5 {[%clk 0:03:01.8]} 7... Nd7 {[%clk 0:02:39.1]} 8. Nf3 {[%clk 0:03:02.7]} 8...
O-O {[%clk 0:02:38.5]} 9. Ne2 {[%clk 0:03:03.5]} 9... f6 {[%clk 0:02:36.9]} 10.
d4 {[%clk 0:03:02.6]} 10... cxd4 {[%clk 0:02:35]} 11. Nexd4 {[%clk 0:03:02.8]}
11... Nxd4 {[%clk 0:02:13.6]} 12. Nxd4 {[%clk 0:03:03.7]} 12... Qb6 {[%clk
0:02:10.3]} 13. Nxe6 {[%clk 0:03:01.2]} 13... Re8 {[%clk 0:01:46.5]} 14. Bxd5
{[%clk 0:03:00.7]} 14... Kh8 {[%clk 0:01:44.2]} 15. Bb3 {[%clk 0:01:39.2]} 15...
Nxe5 {[%clk 0:01:20.5]} 16. Nxg7 {[%clk 0:01:19.7]} 16... Bb4+ {[%clk
0:01:10.4]} 17. c3 {[%clk 0:01:20]} 17... Nf3+ {[%clk 0:01:05.7]} 18. Kf1 {[%clk
0:01:20.2]} 18... Bh3# {[%clk 0:01:05.6]} 0-1